bitfinex-derivatives/quotes_ETHF0:USTF0_20230902
["timestamp","ask_amount","ask_price","bid_price","bid_amount"]
[1693660781878,15.70385,1634.8,1634.7,61.92662798]
[1693660782478,15.70385,1634.8,1634.7,61.92659798]
[1693660783679,15.70385,1634.8,1634.7,61.92657798]
[1693660785178,15.70385,1634.8,1634.7,61.92660798]
[1693660786284,15.18205512,1634.8,1634.7,61.92660798]
[1693660788287,15.18205512,1634.8,1634.7,61.92662798]
[1693660790892,15.18205512,1634.8,1634.7,61.92338389]
[1693660791988,15.18205512,1634.8,1634.7,61.92675802]
[1693660797394,18.04921864,1634.8,1634.7,61.92675802]
[1693660797694,18.57780432,1634.8,1634.7,61.92675802]
[1693660798388,32.02596883,1634.8,1634.7,61.92675802]
[1693660798589,18.63894252,1634.8,1634.7,61.92675802]
[1693660799294,18.63894252,1634.8,1634.7,59.63214802]
[1693660802604,18.63894252,1634.8,1634.7,61.92672802]
[1693660803096,18.63894252,1634.8,1634.7,59.24804802]
[1693660803505,32.02596883,1634.8,1634.7,59.24804802]
[1693660806302,37.54496883,1634.8,1634.7,59.24804802]
[1693660806898,38.18402763,1634.8,1634.7,59.24804802]
[1693660814409,38.18402763,1634.8,1634.7,58.76869813]
[1693660815110,35.31686411,1634.8,1634.7,58.76869813]
[1693660815410,38.18402763,1634.8,1634.7,58.76869813]
[1693660821213,38.18402763,1634.8,1634.7,57.85869813]
[1693660836320,38.18402763,1634.8,1634.7,57.44765368]
[1693660841528,38.18402763,1634.8,1634.7,51.70288832]
[1693660848735,38.18402763,1634.8,1634.7,51.40288832]
[1693660849035,38.18402763,1634.8,1634.7,58.28662832]
[1693660849036,34.61666711,1634.8,1634.7,58.28662832]
[1693660849536,34.61666711,1634.8,1634.7,55.99204832]
[1693660849737,34.61666711,1634.8,1634.7,58.28662832]
[1693660850033,34.61666711,1634.8,1634.7,55.99204832]
[1693660850229,21.2296408,1634.8,1634.7,55.99204832]
[1693660851929,15.7106408,1634.8,1634.7,55.99204832]
[1693660854129,12.88760512,1634.8,1634.7,58.28662832]
[1693660855234,12.88760512,1634.8,1634.7,55.99204832]
[1693660864043,12.88760512,1634.8,1634.7,58.28662832]
[1693660864342,12.88760512,1634.8,1634.7,55.99204832]
[1693660866055,12.88760512,1634.8,1634.7,58.28662832]
[1693660867152,12.88760512,1634.8,1634.7,55.99204832]
[1693660872762,15.18205512,1634.8,1634.7,55.99204832]
[1693660873355,18.04921864,1634.8,1634.7,55.99204832]
[1693660873861,15.18205512,1634.8,1634.7,55.99204832]
[1693660874653,23.62935684,1634.8,1634.7,51.40288832]
[1693660877863,23.62935684,1634.8,1634.7,53.69746832]
[1693660880265,23.62935684,1634.8,1634.7,51.40288832]
[1693660880564,23.62935684,1634.8,1634.7,53.69746832]
[1693660881166,23.62935684,1634.8,1634.7,51.40288832]
[1693660881566,23.62935684,1634.8,1634.7,53.69746832]
[1693660882169,23.62935684,1634.8,1634.7,51.40288832]
[1693660886068,23.62935684,1634.8,1634.7,51.01757746]
[1693660892876,37.02015336,1634.8,1634.7,51.01757746]
[1693660900581,37.02015336,1634.8,1634.7,50.71757746]
[1693660902082,37.02015336,1634.8,1634.7,49.34757746]
[1693660904385,37.02015336,1634.8,1634.7,48.86358905]
[1693660915789,37.02015336,1634.8,1634.7,47.77358905]
[1693660922993,37.02015336,1634.8,1634.7,47.77021492]
[1693660923892,31.79740164,1634.8,1634.7,54.65395492]
[1693660924196,26.27840164,1634.8,1634.7,56.94853492]
[1693660924394,12.88760512,1634.8,1634.7,56.94853492]
[1693660939301,10.59315512,1634.8,1634.7,56.94853492]
[1693660939696,0.48525512,1634.8,1634.7,56.94853492]
[1693660939896,8.71200173,1635.0,1634.7,62.46753492]
[1693660940200,6.41781173,1635.0,1634.7,62.46753492]
[1693660940403,6.41781173,1635.0,1634.9,9.1772]
[1693660946403,6.47894993,1635.0,1634.9,9.1772]
[1693660951205,8.77310993,1635.0,1634.9,9.1772]
[1693660952106,6.47894993,1635.0,1634.9,9.1772]
[1693660955404,6.41781173,1635.0,1634.9,9.1772]
[1693660962324,0.49569091,1635.1,1634.9,14.6962]
[1693660962520,2.29407,1635.1,1635.0,2.26993648]
[1693660962827,4.58814,1635.1,1635.0,11.44611648]
[1693660963321,26.07068157,1635.3,1635.0,16.96511648]
[1693660963526,14.98739,1635.3,1635.0,16.96511648]
[1693660963824,12.40049,1635.3,1635.0,16.96511648]
[1693660964022,12.88701055,1635.3,1635.0,16.96511648]
[1693660967018,6.00552055,1635.3,1635.0,16.96511648]
[1693660967425,10.59303055,1635.3,1635.0,16.96511648]
[1693660971529,6.00552055,1635.3,1635.0,16.96511648]
[1693660971735,10.59303055,1635.3,1635.0,16.96511648]
[1693660972137,6.00552055,1635.3,1635.0,16.96511648]
[1693660972636,10.59305055,1635.3,1635.0,16.96511648]
[1693660974639,10.59307055,1635.3,1635.0,16.96511648]
[1693660976332,12.88686055,1635.3,1635.0,16.96511648]
[1693660982845,10.59307055,1635.3,1635.0,16.96511648]
[1693660984944,11.79125767,1635.3,1635.0,16.96511648]
[1693660985146,8.44730172,1635.2,1635.0,9.17618]
[1693660985345,2.29406,1635.1,1635.0,9.17618]
[1693660985537,4.58812,1635.1,1635.0,9.17618]
[1693660985738,2.29406,1635.1,1635.0,9.17618]
[1693660985943,21.56390884,1635.2,1635.0,9.17618]
[1693660987039,9.07227532,1635.2,1635.0,11.44611648]
[1693660987239,7.9908382,1635.2,1635.0,13.85011648]
[1693660988844,9.18902532,1635.2,1635.0,13.85011648]
[1693660990544,9.12788712,1635.2,1635.0,13.85011648]
[1693660990748,7.9297,1635.2,1635.0,16.25251648]
[1693660991946,7.9297,1635.2,1635.0,21.77151648]
[1693660992448,7.9908382,1635.2,1635.0,21.77151648]
[1693660992649,10.2847482,1635.2,1635.0,21.77151648]
[1693660992950,7.9908382,1635.2,1635.0,21.77151648]
[1693660993849,10.2847782,1635.2,1635.0,21.77151648]
[1693660994247,7.9908382,1635.2,1635.0,21.77151648]
[1693660996151,9.18902532,1635.2,1635.0,21.77151648]
[1693660996849,12.05618884,1635.2,1635.0,21.77151648]
[1693660997854,7.9908382,1635.2,1635.0,21.77151648]
[1693661001949,2.4718382,1635.2,1635.0,21.77151648]
[1693661007959,0.0611382,1635.2,1635.0,21.77151648]
[1693661011956,0.0611382,1635.2,1635.1,5.519]
[1693661012152,0.0611382,1635.2,1635.1,14.69512]
[1693661021867,2.29367,1635.4,1635.2,2.26993648]
[1693661022069,7.81267,1635.4,1635.3,6.88125]
[1693661022264,10.10634,1635.4,1635.3,9.175]
[1693661023065,12.97350352,1635.4,1635.3,9.175]
[1693661023968,13.47259776,1635.4,1635.3,9.175]
[1693661024164,26.84974933,1635.4,1635.3,9.175]
[1693661024666,13.47259776,1635.4,1635.3,9.175]
[1693661026168,14.39297719,1635.4,1635.3,9.175]
[1693661026870,14.45417719,1635.4,1635.3,9.175]
[1693661027469,11.58701367,1635.4,1635.3,9.175]
[1693661029269,14.45417719,1635.4,1635.3,9.175]
[1693661029973,11.58701367,1635.4,1635.3,9.175]
[1693661031166,14.45417719,1635.4,1635.3,9.175]
[1693661032768,16.74784719,1635.4,1635.3,4.28090765]
[1693661032972,16.74784719,1635.4,1635.3,2.29375]
[1693661032973,19.04151719,1635.4,1635.3,2.29375]
[1693661033672,19.04151719,1635.4,1635.3,4.5875]
[1693661042171,32.36573147,1635.4,1635.3,4.5875]
[1693661042371,19.04151719,1635.4,1635.3,4.5875]
[1693661044172,13.88068367,1635.4,1635.3,6.88125]
[1693661044580,6.99967367,1635.4,1635.3,11.66782]
[1693661044974,6.99967367,1635.4,1635.3,14.09172]
[1693661045177,9.29330367,1635.4,1635.3,14.09172]
[1693661045974,11.58693367,1635.4,1635.3,14.09172]
[1693661047679,11.52573367,1635.4,1635.3,14.09172]
[1693661050181,9.23210367,1635.4,1635.3,14.09172]
[1693661051179,6.93847367,1635.4,1635.3,14.09172]
[1693661051876,9.80563719,1635.4,1635.3,14.09172]
[1693661052087,12.09926719,1635.4,1635.3,14.09172]
[1693661053288,9.23210367,1635.4,1635.3,14.09172]
[1693661054092,12.09926719,1635.4,1635.3,14.09172]
[1693661055489,6.01809424,1635.4,1635.3,14.09172]
[1693661057994,0.49909424,1635.4,1635.3,14.09172]
[1693661058291,5.519,1635.5,1635.3,14.09172]
[1693661058494,5.519,1635.5,1635.4,2.33103648]
[1693661058789,5.519,1635.5,1635.4,11.50547648]
[1693661061993,10.10575,1635.6,1635.5,0.0611]
[1693661062195,8.30691496,1635.6,1635.5,9.23498]
[1693661062493,8.30691496,1635.6,1635.5,14.33398]
[1693661062793,10.60024496,1635.6,1635.5,14.33398]
[1693661065297,13.46740848,1635.6,1635.5,14.33398]
[1693661066697,10.60024496,1635.6,1635.5,14.33398]
[1693661068197,13.46740848,1635.6,1635.5,14.33398]
[1693661068497,10.60024496,1635.6,1635.5,14.33398]
[1693661069798,10.66134496,1635.6,1635.5,14.33398]
[1693661071196,13.52850848,1635.6,1635.5,14.33398]
[1693661072795,10.66134496,1635.6,1635.5,14.33398]
[1693661075596,0.49458496,1635.6,1635.5,14.33398]
[1693661075800,3.27254236,1635.8,1635.5,19.85298]
[1693661076001,4.5864,1635.7,1635.6,2.26993648]
[1693661076298,4.5864,1635.7,1635.6,11.44325648]
[1693661081905,10.1054,1635.7,1635.6,11.44325648]
[1693661102218,5.519,1635.7,1635.6,11.44325648]
[1693661112021,7.42578352,1635.8,1635.6,16.96225648]
[1693661112221,7.42578352,1635.8,1635.7,2.4357]
[1693661112422,7.42578352,1635.8,1635.7,14.12246]
[1693661126940,5.13265352,1635.8,1635.7,14.12246]
[1693661128440,5.13265352,1635.8,1635.7,19.64146]
[1693661129231,5.07155352,1635.8,1635.7,19.70256]
[1693661129533,2.77842352,1635.8,1635.7,19.70256]
[1693661130240,0.48533352,1635.8,1635.7,19.70256]
[1693661130537,7.78963482,1635.9,1635.8,6.94031]
[1693661130746,5.49657482,1635.9,1635.8,11.50331648]
[1693661131541,5.98607709,1635.9,1635.8,11.50331648]
[1693661133542,1.40006709,1635.9,1635.8,11.50331648]
[1693661133741,17.39761,1636.0,1635.8,11.50331648]
[1693661134042,30.70265286,1636.0,1635.8,11.50331648]
[1693661134244,17.39761,1636.0,1635.9,2.5347]
[1693661134447,17.39761,1636.0,1635.9,9.41352]
[1693661134642,12.45871,1636.0,1635.9,9.41352]
[1693661135244,15.32587352,1636.0,1635.9,9.41352]
[1693661135440,12.45871,1636.0,1635.9,9.41352]
[1693661135638,12.93724083,1636.0,1635.9,9.41352]
[1693661135838,15.80440435,1636.0,1635.9,9.41352]
[1693661136543,12.93724083,1636.0,1635.9,9.41352]
[1693661140248,15.80440435,1636.0,1635.9,9.41352]
[1693661140447,15.80440435,1636.0,1635.9,11.94632]
[1693661140648,12.93724083,1636.0,1635.9,11.94632]
[1693661141348,11.4899354,1636.0,1635.9,14.30036]
[1693661141849,5.9709354,1636.0,1635.9,14.30036]
[1693661145646,16.71111892,1636.0,1635.9,6.93992]
[1693661146752,13.8439554,1636.0,1635.9,6.93992]
[1693661147156,16.71111892,1636.0,1635.9,6.93992]
[1693661147550,13.8439554,1636.0,1635.9,6.93992]
[1693661148056,13.8439554,1636.0,1635.9,9.23286]
[1693661148355,13.8439554,1636.0,1635.9,6.93992]
[1693661148954,13.8439554,1636.0,1635.9,9.23286]
[1693661149956,11.5510354,1636.0,1635.9,9.23286]
[1693661151859,6.0320354,1636.0,1635.9,9.23286]
[1693661152059,8.89919892,1636.0,1635.9,9.23286]
[1693661152860,6.0320354,1636.0,1635.9,9.23286]
[1693661153061,8.89919892,1636.0,1635.9,9.23286]
[1693661153468,6.0320354,1636.0,1635.9,9.23286]
[1693661154163,8.89919892,1636.0,1635.9,9.23286]
[1693661154370,6.0320354,1636.0,1635.9,9.23286]
[1693661155573,8.89919892,1636.0,1635.9,9.23286]
[1693661156774,6.0320354,1636.0,1635.9,9.23286]
[1693661157570,8.89919892,1636.0,1635.9,9.23286]
[1693661159376,6.0320354,1636.0,1635.9,9.23286]
[1693661161277,8.89919892,1636.0,1635.9,9.23286]
[1693661161971,6.0320354,1636.0,1635.9,9.23286]
[1693661162478,8.89919892,1636.0,1635.9,9.23286]
[1693661162672,6.0320354,1636.0,1635.9,9.23286]
[1693661164480,8.89919892,1636.0,1635.9,9.23286]
[1693661164674,6.0320354,1636.0,1635.9,9.23286]
[1693661165480,8.89919892,1636.0,1635.9,9.23286]
[1693661166679,6.0320354,1636.0,1635.9,9.23286]
[1693661170083,8.89919892,1636.0,1635.9,9.23286]
[1693661171176,6.0320354,1636.0,1635.9,9.23286]
[1693661171882,11.5510354,1636.0,1635.9,9.23286]
[1693661175588,14.41819892,1636.0,1635.9,9.23286]
[1693661176387,11.5510354,1636.0,1635.9,9.23286]
[1693661177288,14.41819892,1636.0,1635.9,9.23286]
[1693661179989,16.71111892,1636.0,1635.9,9.23286]
[1693661180488,14.41819892,1636.0,1635.9,9.23286]
[1693661181287,16.71092892,1636.0,1635.9,6.93992]
[1693661182087,14.41805892,1636.0,1635.9,9.23286]
[1693661182287,16.71080892,1636.0,1635.9,6.93992]
[1693661182692,14.41794892,1636.0,1635.9,9.2328]
[1693661183697,16.71066892,1636.0,1635.9,9.2328]
[1693661185496,13.8435054,1636.0,1635.9,9.2328]
[1693661185890,16.71066892,1636.0,1635.9,9.2328]
[1693661188600,13.8435054,1636.0,1635.9,9.2328]
[1693661189097,16.71066892,1636.0,1635.9,9.2328]
[1693661190895,13.8435054,1636.0,1635.9,9.2328]
[1693661192198,16.71066892,1636.0,1635.9,9.2328]
[1693661192899,13.8435054,1636.0,1635.9,9.2328]
[1693661193096,16.71066892,1636.0,1635.9,9.2328]
[1693661193900,13.8435054,1636.0,1635.9,9.2328]
[1693661194101,16.71066892,1636.0,1635.9,9.2328]
[1693661196700,13.8435054,1636.0,1635.9,9.2328]
[1693661196906,16.71066892,1636.0,1635.9,9.2328]
[1693661199607,13.8435054,1636.0,1635.9,9.2328]
[1693661200112,16.71066892,1636.0,1635.9,9.2328]
[1693661200709,13.8435054,1636.0,1635.9,9.2328]
[1693661202506,16.71066892,1636.0,1635.9,9.2328]
[1693661207712,16.71066892,1636.0,1635.9,6.87876]
[1693661207915,16.71066892,1636.0,1635.9,4.58582]
[1693661213029,16.71066892,1636.0,1635.9,4.58576]
[1693661217533,16.71066892,1636.0,1635.9,6.87864]
[1693661217732,16.71066892,1636.0,1635.9,4.64686]
[1693661220234,16.71066892,1636.0,1635.9,6.93974]
[1693661220535,16.71066892,1636.0,1635.9,4.64686]
[1693661222337,9.83246892,1636.0,1635.9,0.0611]
[1693661252763,12.12515892,1636.0,1635.9,4.64683]
[1693661253161,14.41786892,1636.0,1635.9,4.64683]
[1693661254362,16.71058892,1636.0,1635.9,6.93971]
[1693661259959,29.95524514,1636.0,1635.9,6.93971]
[1693661260263,16.71058892,1636.0,1635.9,6.93971]
[1693661264167,13.8434254,1636.0,1635.9,6.93971]
[1693661264561,16.71058892,1636.0,1635.9,6.93971]
[1693661277977,29.95085722,1636.0,1635.9,6.93971]
[1693661278675,16.71058892,1636.0,1635.9,6.93971]
[1693661283175,16.71058892,1636.0,1635.9,4.64683]
[1693661283377,16.71058892,1636.0,1635.6,2.29329]
[1693661283378,0.0611,1635.8,1635.7,2.29308]
[1693661283572,15.32632352,1635.8,1635.7,4.58617]
[1693661283776,15.70955649,1635.8,1635.7,4.58617]
[1693661283977,15.70955649,1635.8,1635.7,6.87933]
[1693661286185,15.32632352,1635.8,1635.7,6.87933]
[1693661286681,15.32632352,1635.8,1635.7,9.33403]
[1693661292889,12.45916,1635.8,1635.7,9.33403]
[1693661293491,15.32632352,1635.8,1635.7,9.33403]
[1693661293784,12.45916,1635.8,1635.7,9.33403]
[1693661294993,15.32632352,1635.8,1635.7,9.33403]
[1693661295493,15.82074349,1635.8,1635.7,9.33403]
[1693661296801,12.95357997,1635.8,1635.7,9.33403]
[1693661298301,12.95357997,1635.8,1635.7,11.62719]
[1693661300200,6.01341997,1635.8,1635.7,9.39513]
[1693661300406,6.01341997,1635.8,1635.7,11.68829]
[1693661302011,0.49441997,1635.8,1635.7,11.68829]
[1693661302208,12.39766,1635.9,1635.8,6.93992]
[1693661302209,10.10477,1635.9,1635.8,6.93992]
[1693661302610,10.10477,1635.9,1635.8,9.47552]
[1693661302914,10.10477,1635.9,1635.8,11.74545648]
[1693661303110,7.81188,1635.9,1635.8,14.03839648]
[1693661303908,5.519,1635.9,1635.8,14.03839648]
[1693661318626,8.38616352,1635.9,1635.8,14.03839648]
[1693661319824,5.519,1635.9,1635.8,14.03839648]
[1693661321929,10.64408083,1636.0,1635.8,14.03839648]
[1693661323230,12.93687083,1636.0,1635.8,14.03839648]
[1693661323833,10.64408083,1636.0,1635.9,0.0611]
[1693661324035,10.64408083,1636.0,1635.9,6.93947]
[1693661324332,13.51124435,1636.0,1635.9,9.2323]
[1693661324630,10.64408083,1636.0,1635.9,11.6313]
[1693661325331,13.51124435,1636.0,1635.9,11.6313]
[1693661325531,10.64408083,1636.0,1635.9,11.6313]
[1693661325832,12.93676083,1636.0,1635.9,11.6313]
[1693661326132,10.64399083,1636.0,1635.9,11.6313]
[1693661326334,13.51115435,1636.0,1635.9,11.6313]
[1693661327031,10.64399083,1636.0,1635.9,11.6313]
[1693661327535,13.51115435,1636.0,1635.9,11.6313]
[1693661329134,13.51115435,1636.0,1635.9,9.33847]
[1693661330236,15.80384435,1636.0,1635.9,9.33847]
[1693661335037,12.93668083,1636.0,1635.9,9.33847]
[1693661335238,10.64399083,1636.0,1635.9,11.63134]
[1693661335637,13.51115435,1636.0,1635.9,11.63134]
[1693661336335,10.64399083,1636.0,1635.9,11.63134]
[1693661337837,13.51115435,1636.0,1635.9,11.63134]
[1693661338336,10.64399083,1636.0,1635.9,11.63134]
[1693661338632,13.51115435,1636.0,1635.9,11.63134]
[1693661340235,10.64399083,1636.0,1635.9,11.63134]
[1693661340631,13.51115435,1636.0,1635.9,11.63134]
[1693661342335,10.64399083,1636.0,1635.9,11.63134]
[1693661342737,13.51115435,1636.0,1635.9,11.63134]
[1693661343348,10.64399083,1636.0,1635.9,11.63134]
[1693661343641,13.51115435,1636.0,1635.9,11.63134]
[1693661344345,10.64399083,1636.0,1635.9,11.63134]
[1693661344844,15.80389435,1636.0,1635.9,11.63134]
[1693661345440,12.93673083,1636.0,1635.9,11.63134]
[1693661345639,15.80389435,1636.0,1635.9,11.63134]
[1693661349550,12.93673083,1636.0,1635.9,11.63134]
[1693661350244,10.64399083,1636.0,1635.9,11.63134]
[1693661354853,17.00208147,1636.0,1635.9,9.33847]
[1693661356256,14.13491795,1636.0,1635.9,9.33847]
[1693661356560,17.00208147,1636.0,1635.9,9.33847]
[1693661357462,14.13491795,1636.0,1635.9,9.33847]
[1693661357662,17.00208147,1636.0,1635.9,9.33847]
[1693661358668,12.93673083,1636.0,1635.9,9.33847]
[1693661361571,15.80389435,1636.0,1635.9,9.33847]
[1693661362170,10.64399083,1636.0,1635.9,9.33847]
[1693661362476,10.64399083,1636.0,1635.9,11.63135]
[1693661365374,12.93673083,1636.0,1635.9,9.33847]
[1693661365773,10.64399083,1636.0,1635.9,9.33847]
[1693661366174,12.93673083,1636.0,1635.9,9.33847]
[1693661366573,10.64399083,1636.0,1635.9,9.33847]
[1693661366775,12.93673083,1636.0,1635.9,9.33847]
[1693661367070,10.64399083,1636.0,1635.9,9.33847]
[1693661369577,10.64399083,1636.0,1635.9,11.63135]
[1693661370271,12.93673083,1636.0,1635.9,9.33847]
[1693661372778,15.80389435,1636.0,1635.9,9.33847]
[1693661373274,10.58289083,1636.0,1635.9,9.33847]
[1693661373680,12.87563083,1636.0,1635.9,9.33847]
[1693661373880,10.58289083,1636.0,1635.9,9.33847]
[1693661374878,15.74279435,1636.0,1635.9,9.33847]
[1693661375081,12.87563083,1636.0,1635.9,9.33847]
[1693661375281,15.74279435,1636.0,1635.9,9.33847]
[1693661375583,12.87563083,1636.0,1635.9,9.33847]
[1693661376186,10.58289083,1636.0,1635.9,9.33847]
[1693661377086,12.87563083,1636.0,1635.9,9.33847]
[1693661377282,10.58289083,1636.0,1635.9,9.33847]
[1693661377878,12.87563083,1636.0,1635.9,9.33847]
[1693661378990,15.74279435,1636.0,1635.9,9.33847]
[1693661379591,12.87563083,1636.0,1635.9,9.33847]
[1693661380791,15.74279435,1636.0,1635.9,9.33847]
[1693661381290,12.87563083,1636.0,1635.9,9.33847]
[1693661382987,15.74279435,1636.0,1635.9,9.33847]
[1693661383393,12.87563083,1636.0,1635.9,9.33847]
[1693661384891,15.74279435,1636.0,1635.9,9.33847]
[1693661387397,12.87563083,1636.0,1635.9,9.33847]
[1693661387798,15.74279435,1636.0,1635.9,9.33847]
[1693661388497,12.87563083,1636.0,1635.9,9.33847]
[1693661389997,15.74279435,1636.0,1635.9,9.33847]
[1693661401004,15.80389435,1636.0,1635.9,9.33847]
[1693661403599,12.93673083,1636.0,1635.9,9.33847]
[1693661404001,15.80389435,1636.0,1635.9,9.33847]
[1693661404399,8.29021083,1636.0,1635.9,11.63135]
[1693661404602,0.47853083,1636.0,1635.9,17.15035]
[1693661404905,0.48228147,1636.2,1635.9,17.15035]
[1693661405110,12.396,1636.3,1636.2,6.93824]
[1693661405301,25.62406195,1636.3,1636.2,6.93824]
[1693661405501,25.62406195,1636.3,1636.2,12.00884]
[1693661405695,25.62406195,1636.3,1636.2,14.27877648]
[1693661406103,12.396,1636.3,1636.2,14.27877648]
[1693661409008,12.396,1636.3,1636.2,16.51005648]
[1693661409209,13.80845939,1636.3,1636.2,16.51005648]
[1693661410003,13.80845939,1636.3,1636.2,16.57115648]
[1693661410205,13.80845939,1636.3,1636.2,16.51005648]
[1693661411208,13.80845939,1636.3,1636.2,16.57115648]
[1693661411910,13.80845939,1636.3,1636.2,16.51005648]
[1693661412209,13.80845939,1636.3,1636.2,16.57115648]
[1693661412805,13.80845939,1636.3,1636.2,16.51005648]
[1693661413007,13.80845939,1636.3,1636.2,16.57115648]
[1693661413209,13.80845939,1636.3,1636.2,16.51005648]
[1693661413710,13.80845939,1636.3,1636.2,16.57115648]
[1693661413910,13.80845939,1636.3,1636.2,16.51005648]
[1693661414109,13.80845939,1636.3,1636.2,16.57115648]
[1693661417515,13.80845939,1636.3,1636.2,16.51005648]
[1693661417718,13.80845939,1636.3,1636.2,16.57115648]
[1693661418117,12.8751966,1636.3,1636.2,16.57115648]
[1693661423223,10.5828266,1636.3,1636.2,16.57115648]
[1693661428439,8.2904966,1636.3,1636.2,16.57115648]
[1693661429144,8.2904066,1636.3,1636.2,16.57115648]
[1693661429748,5.9981966,1636.3,1636.2,16.57115648]
[1693661431848,0.4791966,1636.3,1636.2,22.09015648]
[1693661432042,7.80938583,1636.4,1636.2,22.09015648]
[1693661432344,5.51719583,1636.4,1636.2,22.09015648]
[1693661434546,7.80936583,1636.4,1636.2,22.09015648]
[1693661434944,5.51718583,1636.4,1636.2,22.09015648]
[1693661436644,6.00915331,1636.4,1636.2,22.09015648]
[1693661437944,0.49196748,1636.4,1636.3,14.74922]
[1693661438139,2.35309,1636.5,1636.4,9.22966]
[1693661438342,0.0611,1636.5,1636.4,11.49959648]
[1693661438647,2.3531,1636.5,1636.4,16.56789648]
[1693661438847,4.6451,1636.5,1636.4,16.56789648]
[1693661440943,9.52641,1636.6,1636.5,0.0611]
[1693661441249,2.29193,1636.6,1636.5,14.7481]
[1693661441846,6.9365,1636.7,1636.5,14.7481]
[1693661442045,6.9365,1636.7,1636.6,7.78893648]
[1693661442248,4.64466,1636.7,1636.6,16.95639648]
[1693661443148,6.93649,1636.7,1636.6,16.95639648]
[1693661443947,0.0611,1636.7,1636.6,16.95639648]
[1693661444143,0.0611,1636.7,1636.6,22.11899648]
[1693661444750,25.21592195,1636.9,1636.6,22.11899648]
[1693661445045,25.21592195,1636.9,1636.7,5.519]
[1693661445243,25.21592195,1636.9,1636.8,9.14470648]
[1693661445549,9.69629,1636.9,1636.8,9.14470648]
[1693661445747,4.58309,1636.9,1636.8,9.14470648]
[1693661446652,6.87466,1636.9,1636.8,9.14470648]
[1693661446945,4.58309,1636.9,1636.8,11.43629648]
[1693661447554,4.58309,1636.9,1636.8,13.87899648]
[1693661448252,4.58309,1636.9,1636.8,16.52239648]
[1693661448253,2.29145,1636.9,1636.8,16.52239648]
[1693661448454,4.5829,1636.9,1636.8,16.52239648]
[1693661451152,6.87435,1636.9,1636.8,16.52239648]
[1693661451856,6.87435,1636.9,1636.8,22.04139648]
[1693661452160,6.87435,1636.9,1636.8,21.98039648]
[1693661452651,6.87435,1636.9,1636.8,22.04139648]
[1693661452852,6.87435,1636.9,1636.8,21.98039648]
[1693661453258,4.5829,1636.9,1636.8,21.98039648]
[1693661454053,4.5829,1636.9,1636.8,22.04139648]
[1693661454253,2.29145,1636.9,1636.8,22.04139648]
[1693661454453,2.29145,1636.9,1636.8,21.98039648]
[1693661454660,4.5829,1636.9,1636.8,21.98039648]
[1693661455259,4.5829,1636.9,1636.8,22.04139648]
[1693661456150,4.5829,1636.9,1636.8,16.95529648]
[1693661456354,4.5829,1636.9,1636.8,17.01629648]
[1693661460262,2.29145,1636.9,1636.8,17.01629648]
[1693661460665,7.36571883,1637.0,1636.8,17.01629648]
[1693661461363,5.07428883,1637.0,1636.8,17.01629648]
[1693661461764,0.49152883,1637.0,1636.9,5.519]
[1693661461958,5.58198418,1637.1,1636.9,15.18075655]
[1693661462162,5.58198418,1637.1,1637.0,7.78893648]
[1693661462360,0.99949418,1637.1,1637.0,16.95417648]
[1693661463060,1.49943304,1637.1,1637.0,16.95417648]
[1693661463257,0.0611,1637.1,1637.0,16.95417648]
[1693661463453,7.48985,1637.3,1637.0,16.95417648]
[1693661463655,12.07188,1637.3,1637.2,5.519]
[1693661463867,12.07188,1637.3,1637.2,14.66202648]
[1693661464160,6.87298,1637.3,1637.2,14.72302648]
[1693661464460,6.87251,1637.4,1637.2,17.01405648]
[1693661464657,6.87251,1637.4,1637.3,5.519]
[1693661464861,6.87251,1637.4,1637.3,12.45267]
[1693661465161,6.87251,1637.4,1637.3,14.74356]
[1693661466263,2.29078,1637.4,1637.3,14.74356]
[1693661466568,2.29067,1637.5,1637.4,0.061]
[1693661466760,7.35202216,1637.5,1637.4,9.20318648]
[1693661467166,7.35202216,1637.5,1637.4,14.72218648]
[1693661468066,7.35202216,1637.5,1637.4,17.01293648]
[1693661468571,5.06135216,1637.5,1637.4,17.01293648]
[1693661470062,2.35148,1637.7,1637.5,0.061]
[1693661470369,4.64181,1637.7,1637.6,16.95076648]
[1693661470666,2.35144,1637.7,1637.6,16.95076648]
[1693661470962,4.64178,1637.7,1637.6,19.36506648]
[1693661471165,4.58068,1637.7,1637.6,19.42606648]
[1693661471366,5.07120074,1637.8,1637.7,6.93202]
[1693661471664,9.65174074,1637.8,1637.7,10.16068]
[1693661471871,9.71284074,1637.8,1637.7,10.09966]
[1693661474174,12.58000426,1637.8,1637.7,12.38999]
[1693661474370,9.71284074,1637.8,1637.7,12.38999]
[1693661474871,12.58000426,1637.8,1637.7,7.80933]
[1693661475062,0.0611,1637.7,1637.6,4.5808]
[1693661475266,10.42060712,1637.7,1637.6,2.29039]
[1693661475871,10.42060712,1637.7,1637.6,4.58086]
[1693661476667,15.93960712,1637.7,1637.4,7.80968]
[1693661476873,2.86716352,1637.6,1637.4,10.10036]
[1693661477177,6.87183,1637.5,1637.4,12.39103]
[1693661478272,14.68144,1637.5,1637.3,6.8725]
[1693661478567,10.93760064,1637.4,1637.3,4.58165]
[1693661478967,8.07043712,1637.4,1637.3,4.58165]
[1693661479168,13.22835064,1637.4,1637.3,4.58165]
[1693661480976,13.22835064,1637.4,1637.3,2.29081]
[1693661481674,13.22835064,1637.4,1637.2,12.45287]
[1693661482062,13.22835064,1637.4,1637.2,10.16189]
[1693661483176,13.22835064,1637.4,1637.2,7.87094]
[1693661483869,10.36118712,1637.4,1637.2,10.16197]
[1693661484067,13.22835064,1637.4,1637.2,10.16197]
[1693661485168,13.22835064,1637.4,1637.1,12.86937]
[1693661485370,6.93461,1637.1,1637.0,47.0403]
[1693661485569,18.81013064,1637.1,1637.0,47.0403]
[1693661494477,14.74478,1637.1,1637.0,47.0403]
[1693661494684,6.93461,1637.1,1637.0,57.14192]
[1693661494872,4.64344,1637.1,1637.0,64.57433]
[1693661496078,6.93461,1637.1,1637.0,64.57433]
[1693661497484,4.64344,1637.1,1637.0,64.57433]
[1693661498487,2.29111,1637.2,1637.1,0.061]
[1693661498682,6.87335,1637.2,1637.1,9.20444648]
[1693661499185,7.36123838,1637.2,1637.1,9.20444648]
[1693661500182,7.36123838,1637.2,1637.1,6.91327648]
[1693661500382,7.36123838,1637.2,1637.1,9.20444648]
[1693661500582,5.07009838,1637.2,1637.1,14.72344648]
[1693661501788,7.9372619,1637.2,1637.1,14.72344648]
[1693661502284,5.07009838,1637.2,1637.1,17.01461648]